bitfinex-derivatives/quotes_BNBF0:USTF0_20250330
["timestamp","ask_amount","ask_price","bid_price","bid_amount"]
[1743357820677,1.69,600.95,599.86,0.28984421]
[1743357821073,0.33281192,600.94,599.86,0.28984421]
[1743357821671,1.85766261,600.94,599.86,0.28984421]
[1743357821876,5.1004747,600.94,599.86,0.28984421]
[1743357822073,1.52485069,600.93,599.86,0.28984421]
[1743357822277,1.52485069,600.93,599.58,2.53977699]
[1743357822477,0.332823,600.92,599.58,2.53977699]
[1743357822678,0.332823,600.92,599.59,0.33356126]
[1743357823471,0.28989612,600.91,599.6,0.28989612]
[1743357823673,0.33283408,600.9,599.61,0.33355014]
[1743357825777,1.572,600.89,599.61,0.33355014]
[1743357826478,0.28991665,600.88,599.61,0.33355014]
[1743357827579,1.24702097,600.87,599.61,0.33355014]
[1743357828674,2.76934059,600.88,599.61,0.33355014]
[1743357829480,0.28993718,600.87,599.61,0.33355014]
[1743357831380,1.24702097,600.88,599.61,0.33355014]
[1743357831574,2.76934059,600.88,599.61,0.33355014]
[1743357831780,1.24702097,600.88,599.61,0.33355014]
[1743357832180,2.81902097,600.89,599.61,0.33355014]
[1743357832681,0.28992148,600.87,599.61,0.33355014]
[1743357834284,1.572,600.89,599.61,0.33355014]
[1743357835679,0.28992148,600.88,599.61,0.33355014]
[1743357836278,0.28992148,600.88,599.77,2.53977699]
[1743357837393,1.572,600.89,599.77,2.53977699]
[1743357838079,1.572,600.89,599.72,2.53977699]
[1743357838479,0.28987922,600.88,599.72,2.53977699]
[1743357840383,1.65648285,601.17,599.72,2.53977699]
[1743357840384,0.33285069,600.87,599.72,2.53977699]
[1743357841385,0.33285069,600.87,599.71,2.53977699]
[1743357841686,0.2898925,600.86,599.71,2.53977699]
[1743357841892,0.33286177,600.85,599.71,2.53977699]
[1743357842492,1.34,600.84,599.71,2.53977699]
[1743357842691,1.67286731,600.84,599.68,0.2898925]
[1743357843396,1.67286731,600.84,599.61,0.33355014]
[1743357843893,0.28991786,600.83,599.68,0.28991786]
[1743357844093,0.33287839,600.82,599.61,0.33355014]
[1743357844698,0.33287839,600.82,599.62,0.28994926]
[1743357845501,1.523164,600.81,599.62,0.28994926]
[1743357845798,1.523164,600.8,599.62,0.28994926]
[1743357845998,0.33289502,600.79,599.62,0.28994926]
[1743357846192,1.523164,600.78,599.62,0.28994926]
[1743357846393,0.3329061,600.77,599.62,0.28994926]
[1743357846994,1.24613832,600.76,599.62,0.28994926]
[1743357847197,0.33291718,600.75,599.62,0.28994926]
[1743357847392,1.85608118,600.75,599.62,0.28994926]
[1743357847598,1.523164,600.74,599.62,0.28994926]
[1743357847799,0.33292827,600.73,599.62,0.28994926]
[1743357848193,1.307,600.72,599.62,0.28994926]
[1743357848393,0.33293935,600.71,599.62,0.28994926]
[1743357848997,1.617,600.7,599.62,0.28994926]
[1743357849197,0.33295044,600.69,599.62,0.28994926]
[1743357849397,0.33295044,600.69,599.61,0.33355014]
[1743357849801,1.523164,600.68,599.61,0.33355014]
[1743357849997,1.85612552,600.67,599.61,0.33355014]
[1743357850201,0.33296706,600.66,599.61,0.33355014]
[1743357850404,1.523164,600.65,599.61,0.33355014]
[1743357850603,1.85614215,600.64,599.62,0.2901354]
[1743357850896,1.53627372,600.66,599.62,0.2901354]
[1743357850897,1.8561477,600.63,599.62,0.2901354]
[1743357851096,1.85615324,600.62,599.62,0.2901354]
[1743357851302,1.85615878,600.61,599.62,0.2901354]
[1743357851497,1.85616433,600.6,599.62,0.2901354]
[1743357851704,1.85616987,600.59,599.62,0.2901354]
[1743357851901,1.85617542,600.58,599.62,0.2901354]
[1743357852104,0.66636129,600.63,599.62,0.2901354]
[1743357852105,1.85618096,600.57,599.62,0.2901354]
[1743357852297,1.85618651,600.56,599.61,0.33355014]
[1743357852499,1.85619205,600.55,599.61,0.33355014]
[1743357852702,1.523164,600.54,599.61,0.33355014]
[1743357852900,1.523164,600.53,599.61,0.33355014]
[1743357853099,1.523164,600.52,598.88,2.53977699]
[1743357853402,1.523164,600.51,598.88,2.53977699]
[1743357853602,1.523164,600.5,599.61,0.29010154]
[1743357853798,1.523164,600.49,598.9,0.33394556]
[1743357854004,1.523164,600.48,598.9,0.33394556]
[1743357854204,1.523164,600.47,598.9,0.33394556]
[1743357854503,1.24613832,600.49,598.9,0.33394556]
[1743357854504,1.523164,600.46,598.9,0.33394556]
[1743357854699,1.523164,600.45,598.9,0.33394556]
[1743357854905,1.24613832,600.46,598.9,0.33394556]
[1743357855105,2.76930232,600.45,598.9,0.33394556]
[1743357855304,1.523164,600.44,598.9,0.33394556]
[1743357855507,1.523164,600.44,598.91,0.29014023]
[1743357855707,1.523164,600.44,598.93,0.33392883]
[1743357855901,1.24613832,600.43,598.93,0.33392883]
[1743357856804,1.24613832,600.42,598.93,0.33392883]
[1743357857509,1.24613832,600.41,598.93,0.33392883]
[1743357858412,1.24613832,600.5,598.93,0.33392883]
[1743357858710,0.29013419,600.45,598.93,0.33392883]
[1743357863421,2.19913419,600.45,598.93,0.33392883]
[1743357864020,2.19913419,600.45,598.95,2.53977699]
[1743357864219,3.15513832,600.45,598.97,0.33390653]
[1743357865215,1.909,600.45,598.97,0.33390653]
[1743357865819,1.909,600.45,598.97,2.87368352]
[1743357866619,1.909,600.45,598.97,0.33390653]
[1743357870617,0.29012693,600.44,598.97,0.33390653]
[1743357871718,1.74612693,600.44,598.97,0.33390653]
[1743357872826,2.99226525,600.44,598.97,0.33390653]
[1743357873521,2.952,600.44,598.97,0.33390653]
[1743357873727,4.37512693,600.44,598.97,0.33390653]
[1743357874325,4.37512693,600.44,599.06,2.53977699]
[1743357874519,4.37512693,600.44,599.08,0.33384522]
[1743357875721,4.37512693,600.44,599.08,2.87362221]
[1743357876323,4.085,600.44,599.08,2.87362221]
[1743357876728,4.37511242,600.44,599.08,2.87362221]
[1743357877030,4.37511242,600.44,599.1,2.53977699]
[1743357877225,4.37511242,600.44,599.11,0.33382851]
[1743357878225,4.37511242,600.44,599.14,2.53977699]
[1743357878530,4.37511242,600.44,599.15,0.33380622]
[1743357879330,4.085,600.44,599.15,0.33380622]
[1743357879727,4.085,600.44,599.19,2.53977699]
[1743357879927,4.085,600.44,599.2,0.33377837]
[1743357880731,1.24328209,600.43,599.2,0.33377837]
[1743357881329,4.37509912,600.44,599.26,2.53977699]
[1743357882332,4.085,600.44,599.26,2.53977699]
[1743357882633,4.085,600.44,599.27,0.33373938]
[1743357882933,6.008,600.44,599.33,2.53977699]
[1743357884635,6.008,600.44,599.34,2.53977699]
[1743357886033,6.008,600.44,599.42,2.53977699]
[1743357887535,6.008,600.44,599.41,2.53977699]
[1743357891439,6.008,600.44,599.31,2.53977699]
[1743357891639,6.008,600.44,599.35,0.29005801]
[1743357892738,6.008,600.44,599.36,2.53977699]
[1743357893739,7.282,600.44,599.36,2.53977699]
[1743357894234,7.282,600.44,599.43,2.53977699]
[1743357895339,7.282,600.44,599.44,2.53977699]
[1743357896336,7.282,600.44,599.57,2.53977699]
[1743357897740,7.282,600.44,599.64,2.53977699]
[1743357899342,7.282,600.44,599.49,2.53977699]
[1743357900638,7.282,600.44,599.32,2.87348852]
[1743357901040,7.282,600.44,599.33,0.33370597]
[1743357901242,1.24983888,600.43,599.33,0.33370597]
[1743357901640,1.24983888,600.42,599.34,0.29005922]
[1743357901841,1.24983888,600.42,599.35,0.33369483]
[1743357902642,1.52867435,600.43,599.35,0.33369483]
[1743357902643,1.24983888,600.41,599.35,0.33369483]
[1743357903041,4.693,600.44,599.35,0.33369483]
[1743357904035,1.25160955,600.43,599.35,0.33369483]
[1743357904741,6.266,600.44,599.35,0.33369483]
[1743357905141,1.264,600.42,599.35,0.33369483]
[1743357906146,1.25266229,600.41,599.35,0.33369483]
[1743357907046,1.264,600.42,599.35,0.33369483]
[1743357908449,1.25291602,600.41,599.35,0.33369483]
[1743357908952,1.694,600.4,599.35,0.33369483]
[1743357909154,2.94691602,600.4,599.35,0.33369483]
[1743357909952,1.694,600.4,599.35,0.33369483]
[1743357910554,1.25298144,600.39,599.35,0.33369483]
[1743357911646,1.694,600.4,599.35,0.33369483]
[1743357916546,1.694,600.4,599.59,2.53977699]
[1743357916753,1.649,600.39,599.59,2.53977699]
[1743357916953,1.649,600.39,599.6,0.3335557]
[1743357919355,1.649,600.39,599.76,2.53977699]
[1743357919755,1.541,600.38,599.76,2.53977699]
[1743357919958,1.541,600.38,599.77,0.33346116]
[1743357920657,1.366,600.37,599.77,0.33346116]
[1743357931463,1.497,600.36,599.77,0.33346116]
[1743357932366,1.574,600.35,599.77,0.33346116]
[1743357937970,1.561,600.34,599.77,0.33346116]
[1743357941181,1.567,600.33,599.77,0.33346116]
[1743357947079,3.141,600.33,599.77,0.33346116]
[1743357959891,4.465,600.33,599.77,0.33346116]
[1743357961092,5.849,600.33,599.77,0.33346116]
[1743357983906,7.168,600.33,599.77,0.33346116]
[1743357994017,7.168,600.33,599.86,2.53977699]
[1743357994218,7.168,600.33,599.87,0.33340557]
[1743357996621,8.758,600.33,599.87,0.33340557]
[1743357999924,4.69442573,600.33,599.87,0.33340557]
[1743358000123,4.293,600.33,599.87,0.33340557]
[1743358000824,1.10173281,600.33,599.87,0.33340557]
[1743358001019,0.28982731,601.3,599.87,0.33340557]
[1743358002329,1.58050353,601.68,599.87,0.33340557]
[1743358002527,0.33241365,601.66,599.87,0.33340557]
[1743358002728,0.28966327,601.3,599.87,0.33340557]
[1743358003230,1.41,601.29,599.87,0.33340557]
[1743358006029,1.115,601.28,599.87,0.33340557]
[1743358006433,1.237,601.27,599.87,0.33340557]
[1743358008044,1.5751701,601.26,599.87,0.33340557]
[1743358008238,1.5751701,601.25,599.87,0.33340557]
[1743358008539,1.5751701,601.24,599.87,0.33340557]
[1743358008735,1.5751701,601.23,599.87,0.33340557]
[1743358009037,1.57458097,601.22,599.87,0.33340557]
[1743358009234,1.57458097,601.21,599.87,0.33340557]
[1743358009430,1.57458097,601.2,599.87,0.33340557]
[1743358009734,2.85957,601.19,599.87,0.33340557]
[1743358009930,1.57458097,601.18,599.87,0.33340557]
[1743358010131,1.28498903,601.19,599.87,0.33340557]
[1743358010132,1.573673,601.17,599.87,0.33340557]
[1743358010335,1.28498903,601.19,599.87,0.33340557]
[1743358010536,1.28498903,601.16,599.87,0.33340557]
[1743358011536,1.237,601.27,599.87,0.33340557]
[1743358011736,4.08998031,601.26,599.87,0.33340557]
[1743358011939,4.08998031,601.25,599.87,0.33340557]
[1743358012140,4.08998031,601.24,599.87,0.33340557]
[1743358012342,4.08998031,601.23,599.87,0.33340557]
[1743358012543,4.08998031,601.22,599.87,0.33340557]
[1743358012743,4.08998031,601.21,599.87,0.33340557]
[1743358012943,1.57306935,601.2,599.87,0.33340557]
[1743358013138,1.57306935,601.19,599.87,0.33340557]
[1743358013339,1.57306935,601.18,599.87,0.33340557]
[1743358013645,2.85682525,601.17,599.87,0.33340557]
[1743358013843,1.57306935,601.16,599.87,0.33340557]
[1743358014143,1.2837559,601.17,599.87,0.33340557]
[1743358014340,1.2837559,601.15,599.87,0.33340557]
[1743358015342,1.2837559,601.14,599.87,0.33340557]
[1743358016245,1.771,601.13,599.87,0.33340557]
[1743358021442,1.683,601.12,599.87,0.33340557]
[1743358022753,1.359,601.11,599.87,0.33340557]
[1743358024751,1.455,601.1,599.87,0.33340557]
[1743358025855,1.55406639,601.09,599.87,0.33340557]
[1743358026054,1.455,601.1,599.87,0.33340557]
[1743358026355,1.26532761,601.08,599.87,0.33340557]
[1743358026547,1.55422589,601.07,599.87,0.33340557]
[1743358026749,1.55422589,601.06,599.87,0.33340557]
[1743358026950,1.55422589,601.05,599.87,0.33340557]
[1743358027150,1.55422589,601.04,599.87,0.33340557]
[1743358027348,4.04162589,601.03,599.87,0.33340557]
[1743358027550,1.55422589,601.02,599.87,0.33340557]
[1743358027755,1.55422589,601.01,599.87,0.33340557]
[1743358027954,1.55422589,601.0,599.87,0.33340557]
[1743358028155,1.55422589,600.99,599.87,0.33340557]
[1743358028356,1.55422589,600.98,599.87,0.33340557]
[1743358028557,1.26532761,601.01,599.87,0.33340557]
[1743358028753,1.55477885,601.0,599.87,0.33340557]
[1743358028951,1.55477885,600.99,599.87,0.33340557]
[1743358029156,1.55499366,600.98,599.87,0.33340557]
[1743358029362,1.26532761,601.0,599.87,0.33340557]
[1743358029658,1.26532761,600.97,599.87,0.33340557]
[1743358030552,1.55520838,600.96,599.87,0.33340557]
[1743358030757,1.455,601.1,599.87,0.33340557]
[1743358030953,4.04368994,601.09,599.87,0.33340557]
[1743358031257,4.04368994,601.08,599.87,0.33340557]
[1743358031456,4.04368994,601.07,599.87,0.33340557]
[1743358031657,4.04368994,601.06,599.87,0.33340557]
[1743358031856,4.04368994,601.05,599.87,0.33340557]
[1743358032056,4.04368994,601.04,599.87,0.33340557]
[1743358032257,1.55625203,601.03,599.87,0.33340557]
[1743358032554,1.55625203,601.02,599.87,0.33340557]
[1743358032752,1.55625203,601.01,599.87,0.33340557]
[1743358032951,3.29237784,601.05,599.87,0.33340557]
[1743358033153,1.53992628,601.04,599.87,0.33340557]
[1743358033354,1.26629917,601.01,599.87,0.33340557]
[1743358033756,2.80677947,601.0,599.87,0.33340557]
[1743358033956,1.26629917,601.0,599.87,0.33340557]
[1743358034358,1.54089599,601.07,599.87,0.33340557]
[1743358034554,1.54089599,601.06,599.87,0.33340557]
[1743358034759,1.54089599,601.05,599.87,0.33340557]
[1743358035054,1.54089599,601.04,599.87,0.33340557]
[1743358035255,1.25167143,601.05,599.87,0.33340557]
[1743358035857,1.25167143,601.04,599.87,0.33340557]
[1743358036062,1.54089599,601.03,599.87,0.33340557]
[1743358036262,1.54089599,601.02,599.87,0.33340557]
[1743358036467,1.54089599,601.01,599.87,0.33340557]
[1743358036663,1.25167143,601.02,599.87,0.33340557]
[1743358036864,1.54089599,601.01,599.87,0.33340557]
[1743358037060,1.25167143,601.02,599.87,0.33340557]
[1743358037569,1.54089599,601.08,599.87,0.33340557]
[1743358037570,1.25167143,601.0,599.87,0.33340557]
[1743358038961,1.54089599,601.09,599.87,0.33340557]
[1743358039165,1.25167143,601.11,599.87,0.33340557]
[1743358039867,0.28981645,601.1,599.87,0.33340557]
[1743358040067,1.697,601.09,599.87,0.33340557]
[1743358041669,2.94867143,601.09,599.87,0.33340557]
[1743358042169,0.28983214,601.08,599.87,0.33340557]
[1743358042769,1.65883214,601.08,599.87,0.33340557]
[1743358044372,1.369,601.08,599.87,0.33340557]
[1743358045780,1.65887077,601.08,599.87,0.33340557]
[1743358046276,1.369,601.08,599.87,0.33340557]
[1743358049678,2.769,601.08,599.87,0.33340557]
[1743358051878,4.347,601.08,599.87,0.33340557]
[1743358056090,1.25888977,601.07,599.87,0.33340557]
[1743358057091,4.347,601.08,599.87,0.33340557]
[1743358057788,4.63682731,601.08,599.87,0.33340557]
[1743358059386,4.347,601.08,599.87,0.33340557]
[1743358059789,4.63682007,601.08,599.87,0.33340557]
[1743358060791,1.54932706,601.07,599.87,0.33340557]
[1743358061488,2.80769479,601.07,599.87,0.33340557]
[1743358062294,1.25836773,601.07,599.87,0.33340557]
[1743358062686,2.83336773,601.07,599.87,0.33340557]
[1743358062896,1.575,601.07,599.87,0.33340557]
[1743358063894,1.575,601.07,599.98,2.53977699]
[1743358064090,1.575,601.07,599.99,0.33333888]
[1743358066092,1.575,601.07,600.05,2.53977699]
[1743358066296,1.575,601.07,600.06,0.3333]
[1743358066692,3.506,601.07,600.06,0.3333]
[1743358075200,5.278,601.07,600.06,0.3333]
[1743358076400,1.55177858,601.06,600.06,0.3333]
[1743358076605,1.55177858,601.05,600.06,0.3333]
[1743358076800,1.55177858,601.04,600.09,2.53977699]
[1743358077097,1.55177858,601.03,600.09,2.53977699]
[1743358077303,1.55177858,601.02,600.09,2.53977699]
[1743358077504,1.55177858,601.01,600.09,2.53977699]
[1743358077705,1.55177858,601.0,600.09,2.53977699]
[1743358077899,1.55177858,600.99,600.09,2.53977699]
[1743358078105,1.55177858,600.98,600.09,2.53977699]
[1743358078305,1.55252191,600.97,600.09,2.53977699]
[1743358078506,1.55252191,600.96,600.09,2.53977699]
[1743358078704,1.55252191,600.95,600.06,0.62307904]
[1743358078900,1.55252191,600.94,600.06,0.62307904]
[1743358079099,1.55252191,600.93,600.06,0.62307904]
[1743358079300,1.55252191,600.92,600.06,0.62307904]
[1743358079605,1.55252191,600.91,600.06,0.62307904]
[1743358079805,1.55252191,600.9,600.06,0.62307904]
[1743358080004,1.55252191,600.89,600.06,0.62307904]
[1743358080204,1.55252191,600.88,600.06,0.62307904]
[1743358080506,1.55252191,600.87,600.06,0.3333]
[1743358080799,1.55252191,600.86,600.06,0.62312007]
[1743358081006,1.55252191,600.85,600.06,0.28982007]
[1743358081205,1.55252191,600.84,600.06,0.28982007]
[1743358081405,1.55285097,600.83,600.06,0.28982007]
[1743358081607,1.55285097,600.82,600.06,0.28982007]
[1743358081809,1.55285097,600.81,600.06,0.28982007]
[1743358082008,1.55285097,600.8,600.06,0.28982007]
[1743358082204,1.55285097,600.82,600.06,0.28982007]
[1743358082403,1.26038654,600.8,600.06,0.28982007]
[1743358083109,1.26038654,600.79,600.06,0.28982007]
[1743358083509,1.26038654,600.79,599.69,2.53977699]
[1743358083707,1.26038654,600.81,599.69,2.53977699]
[1743358084503,1.26038654,600.8,599.69,2.53977699]
[1743358084707,1.26038654,600.8,599.7,0.28989491]
[1743358085109,1.844,600.83,599.7,0.28989491]
[1743358085110,2.81298814,600.82,599.7,0.28989491]
[1743358085704,1.26038654,600.82,599.7,0.28989491]
[1743358086109,1.26038654,600.81,599.7,0.28989491]
[1743358086308,1.26038654,600.81,599.59,2.53977699]
[1743358086510,1.26038654,600.81,599.6,0.3335557]
[1743358086711,1.26038654,600.8,599.7,0.28990699]
[1743358087210,1.26038654,600.8,599.6,0.3335557]
[1743358087611,1.26038654,600.82,599.6,0.3335557]
[1743358087813,1.26038654,600.82,599.61,0.28990095]
[1743358088010,1.26038654,600.82,599.62,0.33354457]
[1743358088411,1.844,600.83,599.62,0.33354457]
[1743358093116,1.844,600.83,599.66,2.53977699]
[1743358093312,1.844,600.83,599.67,0.33351676]
[1743358094112,3.639,600.83,599.67,0.33351676]
[1743358096022,3.639,600.83,599.69,2.53977699]
[1743358096213,3.639,600.83,599.7,0.33350008]
[1743358098820,3.639,600.83,599.72,2.53977699]
[1743358099420,3.639,600.83,599.73,0.3334834]
[1743358101728,5.247,600.83,599.73,0.3334834]
[1743358102027,5.247,600.83,599.74,2.53977699]
[1743358102926,5.247,600.83,599.75,0.33347228]
[1743358105830,6.591,600.83,599.79,2.53977699]
[1743358106330,6.591,600.83,599.8,0.33344448]
[1743358106331,8.002,600.83,599.8,0.33344448]
[1743358114035,1.261091,600.82,599.8,0.33344448]
[1743358115735,6.394,600.83,599.8,0.33344448]
[1743358117235,8.166,600.83,599.8,0.33344448]
[1743358119336,1.26089066,600.82,599.8,0.33344448]
[1743358120237,8.166,600.83,599.8,0.33344448]
[1743358123238,1.5524569,600.82,599.8,0.33344448]
[1743358123439,2.81351249,600.82,599.8,0.33344448]
[1743358123637,0.28989491,600.81,599.8,0.33344448]
[1743358124440,1.26105559,600.8,599.8,0.33344448]
[1743358125440,0.28989491,600.81,599.8,0.33344448]
[1743358125441,1.26105559,600.79,599.8,0.33344448]
[1743358126341,0.28989491,600.81,599.8,0.33344448]
[1743358126539,1.2,600.78,599.8,0.33344448]
[1743358128441,1.26112995,600.77,599.8,0.33344448]
[1743358129039,1.2,600.78,599.8,0.33344448]
[1743358129941,1.26130556,600.77,599.8,0.33344448]
[1743358130542,1.26130556,600.76,599.8,0.33344448]
[1743358131545,1.2,600.78,599.8,0.33344448]
[1743358131744,1.2,600.78,599.8,2.87322147]
[1743358133049,1.2,600.78,599.8,0.33344448]
[1743358133643,1.563,600.77,599.8,0.33344448]
[1743358134550,1.563,600.77,599.82,2.53977699]
[1743358134746,1.563,600.77,599.84,0.33342224]
[1743358134947,1.433,600.76,599.84,0.33342224]
[1743358136153,1.433,600.76,599.97,2.53977699]
[1743358136353,1.433,600.76,599.98,0.33334444]
[1743358137055,1.771,600.75,599.98,0.33334444]
[1743358143857,1.888,600.74,599.98,0.33334444]
[1743358155560,1.59843556,600.74,599.98,0.33334444]
[1743358155960,1.481,600.82,599.98,0.33334444]
[1743358156662,1.51263512,602.11,599.98,0.33334444]
[1743358156862,1.51263512,602.1,599.98,0.33334444]
[1743358157057,1.51263512,602.09,599.98,0.33334444]
[1743358157363,3.92662218,602.08,599.98,0.33334444]
[1743358157563,3.92662218,602.07,599.98,0.33334444]
[1743358157862,3.22301435,602.1,599.98,0.33334444]
[1743358158059,3.88745805,602.06,599.98,0.33334444]
[1743358158861,1.716,602.05,599.98,0.33334444]
[1743358159265,1.29,602.04,599.98,0.33334444]
[1743358161761,1.221,602.03,599.98,0.33334444]
[1743358168668,0.2894344,602.02,599.98,0.33334444]
[1743358170568,1.49998811,602.01,599.98,0.33334444]
[1743358170766,1.221,602.03,599.98,0.33334444]
[1743358170767,1.49998811,602.02,599.98,0.33334444]
[1743358170963,1.49998811,602.01,599.98,0.33334444]
[1743358171163,3.89991276,602.02,599.98,0.33334444]
[1743358171468,3.89991276,602.01,599.98,0.33334444]
[1743358171670,3.89991276,602.0,599.98,0.33334444]
[1743358171970,1.49998811,601.99,599.98,0.33334444]
[1743358172167,0.28950182,602.01,599.98,0.33334444]
[1743358172363,1.49998811,602.0,599.98,0.33334444]
[1743358172565,1.49998811,601.99,599.98,0.33334444]
[1743358172769,1.49998811,601.98,599.98,0.33334444]
[1743358172964,1.49998811,601.97,599.98,0.33334444]
[1743358173165,1.50029489,601.96,599.98,0.33334444]
[1743358173360,1.50029489,601.99,599.98,0.33334444]
[1743358173561,1.50029489,601.98,599.98,0.33334444]
[1743358173766,0.28946208,601.95,599.98,0.33334444]
[1743358175567,1.83255391,601.94,599.98,0.33334444]
[1743358175773,1.50029489,601.93,599.98,0.33334444]
[1743358176171,1.50029489,601.92,599.98,0.33334444]
[1743358176371,1.83257047,601.91,599.98,0.33334444]
[1743358176672,1.6382811,601.9,599.98,0.33334444]
[1743358177064,3.13857599,601.9,599.98,0.33334444]
[1743358177271,1.50029489,601.89,599.98,0.33334444]
[1743358177569,1.83258704,601.88,599.98,0.33334444]
[1743358177770,0.33229767,601.87,599.98,0.33334444]
[1743358178167,1.50029489,601.86,599.98,0.33334444]
[1743358178370,1.8326036,601.85,599.98,0.33334444]
[1743358178568,1.50029489,601.84,599.98,0.33334444]
[1743358179168,1.50029489,601.83,599.98,0.33334444]
[1743358179368,1.50029489,601.82,599.98,0.33334444]
[1743358179574,0.33230871,601.85,599.98,0.33334444]
[1743358179575,1.50029489,601.84,599.98,0.33334444]
[1743358179874,1.83261464,601.83,599.98,0.33334444]
[1743358180173,0.33232527,601.82,599.98,0.33334444]
[1743358181069,1.52032527,601.82,599.98,0.33334444]
[1743358182674,0.28952229,601.81,599.98,0.33334444]
[1743358182874,0.62185309,601.81,599.98,0.33334444]
[1743358183274,2.13815874,601.8,599.98,0.33334444]
[1743358183478,2.13816426,601.79,599.98,0.33334444]
[1743358183674,1.80582242,601.78,599.98,0.33334444]
[1743358183874,0.28952229,601.81,599.98,0.33334444]
[1743358183875,2.13817531,601.77,599.98,0.33334444]
[1743358184071,1.8326533,601.76,599.98,0.33334444]
[1743358184272,1.50029489,601.75,599.98,0.33334444]
[1743358184470,1.50029489,601.74,599.98,0.33334444]
[1743358184675,1.50029489,601.73,599.98,0.33334444]
[1743358184870,1.50029489,601.72,599.98,0.33334444]
[1743358185072,1.50029489,601.75,599.98,0.33334444]
[1743358185275,1.50029489,601.74,599.98,0.33334444]
[1743358185476,1.50029489,601.75,599.98,0.33334444]
[1743358185677,1.78983043,601.74,599.98,0.33334444]
[1743358185879,0.28953554,601.74,599.98,0.33334444]
[1743358186071,1.50029489,601.73,599.98,0.33334444]
[1743358186377,0.621905,601.74,599.98,0.33334444]
[1743358186577,1.733,601.72,599.98,0.33334444]
[1743358187479,3.88956847,601.71,599.98,0.33334444]
[1743358187671,3.88956847,601.7,599.98,0.33334444]
[1743358187870,4.55468003,601.69,599.98,0.33334444]
[1743358188071,4.55468003,601.68,599.98,0.33334444]
[1743358188276,1.733,601.72,599.98,0.33334444]
[1743358188277,4.55806883,601.67,599.98,0.33334444]
[1743358188578,3.89295489,601.66,599.98,0.33334444]
[1743358188772,3.89295489,601.65,599.98,0.33334444]
[1743358188975,3.89295489,601.64,599.98,0.33334444]
[1743358189174,3.89295489,601.63,599.98,0.33334444]
[1743358189371,1.49729034,601.62,599.98,0.33334444]
[1743358189573,1.49729034,601.61,599.98,0.33334444]
[1743358189778,1.49729034,601.6,599.98,0.33334444]
[1743358189972,1.49729034,601.59,599.98,0.33334444]
[1743358190172,1.49729034,601.58,599.98,0.33334444]
[1743358190373,0.28960059,601.64,599.98,0.33334444]
[1743358190574,1.18628479,601.62,599.98,0.33334444]
[1743358191274,0.28960059,601.64,599.98,0.33334444]
[1743358191670,1.308,601.61,599.98,0.33334444]
[1743358193073,3.059,601.6,599.98,0.33334444]
[1743358197582,3.059,601.6,599.98,2.87312143]
[1743358199181,3.059,601.6,600.03,2.53977699]
[1743358199378,3.059,601.6,600.05,0.33330555]
[1743358200992,3.059,601.6,600.37,2.53977699]
[1743358201288,3.059,601.6,600.39,0.3331168]
[1743358202490,3.059,601.6,600.42,2.53977699]
[1743358203484,3.059,601.6,600.43,0.33309461]
[1743358206792,3.059,601.6,600.46,2.53977699]
[1743358207090,3.059,601.6,600.47,0.33307242]
[1743358208089,3.059,601.6,600.53,2.53977699]
[1743358208292,3.059,601.6,600.54,0.3330336]
[1743358212196,3.059,601.6,600.59,2.53977699]
[1743358212397,3.059,601.6,600.6,0.33300033]
[1743358213397,3.059,601.6,600.67,2.53977699]
[1743358213796,1.857,601.59,600.67,2.53977699]
[1743358214995,1.857,601.59,600.7,2.53977699]
[1743358216403,1.857,601.59,600.68,2.53977699]
[1743358217604,1.282,601.58,600.68,2.53977699]
[1743358218903,3.056,601.58,600.68,2.53977699]
[1743358219404,3.056,601.58,600.78,2.53977699]
[1743358220901,3.056,601.58,600.6,0.33300033]
[1743358222803,3.056,601.58,600.62,2.53977699]
[1743358223611,3.056,601.58,600.61,2.53977699]
[1743358224401,4.285,601.58,600.61,2.53977699]
[1743358225403,4.285,601.58,600.6,0.6224889]
[1743358227608,4.285,601.58,600.6,0.33300033]
[1743358228708,4.285,601.58,600.6,0.62252021]
[1743358230405,4.285,601.58,600.6,0.33300033]
[1743358230611,5.807,601.58,600.6,0.33300033]
[1743358231913,1.50306321,601.57,600.6,0.62253587]
[1743358232111,2.71382094,601.57,600.6,0.62253587]
[1743358232514,2.71385722,601.57,600.6,0.62253587]
[1743358232910,1.21075773,601.57,600.6,0.62253587]
[1743358233117,5.807,601.58,600.6,0.62253587]
[1743358233118,1.21075773,601.56,600.6,0.62253587]
[1743358233516,1.21075773,601.56,600.6,0.33300033]
[1743358234120,1.21075773,601.57,600.6,0.33300033]
[1743358234719,0.28958734,601.56,600.6,0.62258767]
[1743358236522,1.21075773,601.57,600.6,0.33300033]